bitfinex/quotes_ETHUSD_20250219
["timestamp","ask_amount","ask_price","bid_price","bid_amount"]
[1739957782211,4.4203,2727.4,2726.9,3.66716]
[1739957782380,4.4203,2727.4,2726.8,5.36]
[1739957782707,4.4203,2727.4,2726.8,9.0272]
[1739957783114,3.66676,2727.2,2726.8,5.36]
[1739957783320,3.66692,2727.1,2726.8,5.36]
[1739957783485,3.66676,2727.2,2726.8,5.36]
[1739957787321,3.66694,2727.1,2726.8,5.36]
[1739957787485,3.66679,2727.2,2726.8,5.36]
[1739957788615,4.42033,2727.4,2726.8,5.36]
[1739957788915,3.66666,2727.3,2726.8,5.36]
[1739957789924,3.66678,2727.2,2726.8,5.36]
[1739957792243,4.862403,2727.4,2726.8,5.36]
[1739957792244,8.529023,2727.4,2726.8,9.02727]
[1739957792448,4.862403,2727.4,2726.9,4.48699]
[1739957792589,4.862403,2727.4,2726.9,0.8199]
[1739957792922,3.66665,2727.3,2726.8,9.0273]
[1739957793507,3.66665,2727.3,2726.8,5.36]
[1739957793508,3.66663,2727.3,2726.8,5.36]
[1739957794232,1.195833,2727.4,2726.8,9.02726]
[1739957794541,0.8224,2727.6,2727.1,3.66689]
[1739957794949,4.48865,2727.6,2727.1,3.66689]
[1739957795179,4.58611,2727.7,2727.2,3.66674]
[1739957795440,0.92,2727.7,2727.5,3.66635]
[1739957795643,0.92,2727.7,2727.6,3.66622]
[1739957795821,0.92,2727.7,2727.6,5.740077]
[1739957795986,0.92,2727.7,2727.6,11.100077]
[1739957796189,0.005,2728.4,2728.0,3.66563]
[1739957796392,0.005,2728.4,2728.1,4.42243]
[1739957797533,0.005,2728.4,2728.1,0.7569]
[1739957797696,0.005,2728.4,2728.1,4.42243]
[1739957798411,0.005,2728.4,2728.1,4.42236]
[1739957798792,0.005,2728.4,2728.1,0.7569]
[1739957799106,0.005,2728.4,2728.1,4.42241]
[1739957799312,0.005,2728.4,2728.1,5.767214]
[1739957799748,0.005,2728.4,2728.1,2.101704]
[1739957799942,0.005,2728.4,2728.2,3.66532]
[1739957800948,0.005,2728.4,2728.1,4.42244]
[1739957801544,0.005,2728.4,2728.2,3.66537]
[1739957802047,0.005,2728.4,2728.3,3.66528]
[1739957802548,0.005,2728.4,2728.1,4.42244]
[1739957802752,0.005,2728.4,2728.2,3.6653]
[1739957802953,0.005,2728.4,2728.3,3.66528]
[1739957803801,0.005,2728.4,2728.2,7.33062]
[1739957804002,0.005,2728.4,2728.2,8.139392]
[1739957804546,0.005,2728.4,2728.2,4.474052]
[1739957804747,0.005,2728.4,2728.3,3.66528]
[1739957808620,0.005,2728.4,2728.3,9.02528]
[1739957813095,0.005,2728.4,2728.3,9.77548]
[1739957813303,0.005,2728.4,2728.3,11.119568]
[1739957815789,0.005,2728.4,2728.3,14.119568]
[1739957816541,0.005,2728.4,2728.3,11.119568]
[1739957817810,0.005,2728.4,2728.3,19.929568]
[1739957820071,0.005,2728.4,2728.3,15.514088]
[1739957820290,0.005,2728.4,2728.3,14.17]
[1739957822155,0.005,2728.4,2727.8,3.66593]
[1739957822156,0.7863,2728.3,2727.8,3.66593]
[1739957822767,0.7863,2728.3,2727.8,7.33179]
[1739957823088,0.7863,2728.3,2727.8,3.66586]
[1739957823293,0.7863,2728.3,2727.9,3.66581]
[1739957823481,0.005,2728.4,2728.1,3.66552]
[1739957823685,0.005,2728.4,2728.1,4.39866]
[1739957823857,0.005,2728.4,2728.1,3.66553]
[1739957824759,0.005,2728.4,2727.9,3.66573]
[1739957825213,3.6702,2728.4,2727.8,5.36]
[1739957825372,4.42328,2728.1,2727.8,5.36]
[1739957825568,0.8081,2727.8,2727.4,5.36]
[1739957825777,4.47406,2727.8,2727.4,5.36]
[1739957825976,0.8081,2727.8,2727.4,5.36]
[1739957827196,3.66623,2727.6,2727.1,9.02685]
[1739957827513,0.7897,2727.5,2727.1,14.787465]
[1739957827797,0.7897,2727.7,2727.2,3.66676]
[1739957828119,0.7897,2728.1,2727.7,3.66608]
[1739957828259,3.67017,2728.4,2727.3,3.21393039]
[1739957828460,0.7897,2728.3,2728.1,3.66552]
[1739957828690,0.005,2728.4,2728.1,3.66552]
[1739957828896,0.005,2728.4,2727.9,3.66579]
[1739957829065,0.005,2728.4,2727.9,3.66573]
[1739957829260,0.005,2728.4,2728.0,3.66567]
[1739957829696,3.66529,2728.3,2727.8,5.36]
[1739957829876,3.66548,2728.2,2727.8,5.36]
[1739957830696,3.66548,2728.2,2727.4,3.6664]
[1739957830697,3.6658,2728.0,2727.4,3.6664]
[1739957830899,0.7733,2728.1,2727.6,3.66622]
[1739957831201,0.7733,2728.1,2727.7,3.66606]
[1739957831578,0.7733,2728.1,2727.6,3.66622]
[1739957831579,0.7733,2728.1,2727.6,7.33236]
[1739957831779,0.7733,2728.1,2727.7,3.66608]
[1739957833506,0.7733,2728.1,2727.8,3.66594]
[1739957834588,0.7733,2728.1,2727.6,7.33224]
[1739957834771,0.7733,2728.1,2727.7,4.399264]
[1739957835297,0.7733,2728.1,2727.3,5.36]
[1739957835501,3.66569,2728.0,2727.5,7.3325]
[1739957835721,0.7733,2728.1,2727.7,3.66608]
[1739957836025,0.7733,2728.1,2727.7,7.33209]
[1739957836322,0.8184,2728.4,2728.0,7.33128]
[1739957836521,0.8184,2728.4,2728.1,3.66546]
[1739957836817,0.8184,2728.4,2728.2,3.66539]
[1739957837224,0.005,2728.4,2728.2,4.398439]
[1739957837389,0.005,2728.4,2728.3,3.66528]
[1739957838823,0.005,2728.4,2728.2,3.66534]
[1739957838824,0.7755,2728.3,2728.1,3.66553]
[1739957839001,0.005,2728.4,2727.9,6.1185]
[1739957839198,0.005,2728.4,2728.3,3.66528]
[1739957839440,0.005,2728.4,2728.3,4.031808]
[1739957840429,0.005,2728.4,2728.3,0.366528]
[1739957840932,0.005,2728.4,2727.9,6.1185]
[1739957840933,3.67022,2728.4,2727.9,5.36]
[1739957841093,0.8108,2728.3,2727.9,5.36]
[1739957841293,0.8108,2728.3,2727.9,3.66574]
[1739957841697,3.66542,2728.2,2727.7,5.36]
[1739957842022,3.66591,2727.9,2727.5,5.36]
[1739957842593,4.45552,2728.1,2727.5,5.36]
[1739957842793,3.6657,2728.0,2727.5,9.02636]
[1739957843004,3.6657,2728.0,2727.5,5.36]
[1739957843209,0.7899,2728.1,2727.5,5.36]
[1739957843413,3.6659,2727.9,2727.5,5.36]
[1739957843920,3.66589,2727.9,2727.5,5.36]
[1739957845133,3.66598,2727.8,2727.5,5.36]
[1739957845428,3.66598,2727.8,2727.3,9.0266]
[1739957845624,3.66598,2727.8,2727.3,10.76200758]
[1739957845792,3.66589,2727.9,2727.3,10.76200758]
[1739957845793,0.92,2727.7,2727.3,10.76200758]
[1739957845992,0.92,2727.7,2727.4,3.66649]
[1739957846425,0.92,2727.7,2727.3,7.09540758]
[1739957846602,4.58609,2727.7,2727.3,5.36]
[1739957847391,0.8132,2727.6,2727.1,3.66678]
[1739957847592,0.8132,2727.6,2727.2,3.66673]
[1739957848522,0.92,2727.7,2727.5,3.66629]
[1739957849292,0.92,2727.7,2727.6,3.66622]
[1739957849488,0.92,2727.7,2727.6,4.399471]
[1739957850735,0.7597,2728.1,2727.7,3.66596]
[1739957851236,0.7597,2728.1,2727.8,3.6659]
[1739957851435,0.7597,2728.1,2727.6,0.733251]
[1739957851612,4.42538,2728.1,2727.5,7.33249]
[1739957851814,4.42538,2728.1,2727.6,3.6662]
[1739957852702,4.42538,2728.1,2727.5,7.33249]
[1739957853333,0.7655,2727.9,2727.4,3.66649]
[1739957853512,0.7655,2727.9,2727.4,7.33291]
[1739957853996,0.7655,2727.9,2727.5,3.66631]
[1739957855515,4.43139,2727.9,2727.3,3.66655]
[1739957855717,0.7655,2727.9,2727.4,3.66641]
[1739957855913,0.7655,2727.9,2727.5,3.66634]
[1739957857340,0.7655,2727.9,2727.6,3.66615]
[1739957857904,0.7655,2727.9,2727.7,3.66599]
[1739957858202,0.7702,2728.1,2727.9,3.66581]
[1739957858435,0.7702,2728.1,2727.7,3.66606]
[1739957858628,0.7702,2728.1,2727.8,3.66593]
[1739957858938,0.7702,2728.1,2727.9,3.6658]
[1739957859104,0.7702,2728.3,2728.0,3.66568]
[1739957861029,0.7702,2728.3,2727.8,3.66594]
[1739957861221,0.7702,2728.3,2727.8,3.66587]
[1739957861423,0.7702,2728.3,2727.9,3.6658]
[1739957862734,0.7702,2728.3,2727.8,3.66587]
[1739957862921,0.7702,2728.3,2727.8,7.33174]
[1739957863573,0.7702,2728.3,2727.8,3.66587]
[1739957863710,0.7702,2728.3,2727.9,3.66582]
[1739957865948,0.7702,2728.3,2727.8,3.66587]
[1739957866318,0.7702,2728.3,2727.9,3.66575]
[1739957867548,0.005,2728.4,2728.2,3.66542]
[1739957867755,0.005,2728.4,2728.3,3.66528]
[1739957870953,0.005,2728.4,2728.3,4.42538]
[1739957871560,0.005,2728.4,2728.3,3.66528]
[1739957877150,0.7929,2728.4,2728.0,3.66557]
[1739957877338,0.7929,2728.4,2728.2,3.66534]
[1739957877730,0.7929,2728.4,2728.3,3.66528]
[1739957879661,0.7929,2728.4,2728.1,3.66554]
[1739957880024,0.7929,2728.4,2727.9,4.398892]
[1739957880025,0.7929,2728.4,2727.9,7.33142]
[1739957880255,0.7929,2728.4,2727.9,3.66569]
[1739957880527,1.238702,2728.4,2728.1,3.66546]
[1739957880793,0.7929,2728.4,2728.0,3.66562]
[1739957882459,0.7929,2728.4,2728.1,3.66555]
[1739957882659,0.7929,2728.4,2728.0,7.33122]
[1739957882866,0.7929,2728.4,2728.0,3.6656]
[1739957883046,0.005,2728.4,2727.9,0.7598]
[1739957883247,0.005,2728.4,2728.3,3.66528]
[1739957885782,0.005,2728.4,2728.3,4.44958]
[1739957886845,0.7809,2728.3,2728.2,9.02541]
[1739957887050,0.7809,2728.3,2728.2,5.36]
[1739957888169,0.7809,2728.3,2727.7,0.7907]
[1739957888170,0.7809,2728.3,2727.7,4.45676]
[1739957888370,0.8237,2728.1,2727.6,5.36]
[1739957888956,0.8237,2728.1,2727.7,3.66601]
[1739957889156,0.8237,2728.1,2727.7,3.66599]
[1739957889385,0.8237,2728.1,2727.8,3.66587]
[1739957890298,0.8237,2728.1,2727.7,3.66599]
[1739957890492,0.8237,2728.1,2727.6,9.02613]
[1739957890667,0.7827,2728.0,2727.6,3.66622]
[1739957890866,0.7827,2728.0,2727.7,3.666]
[1739957891066,0.7827,2728.0,2727.8,3.66594]
[1739957891771,0.7827,2728.0,2727.7,3.66608]
[1739957892100,0.7827,2728.0,2727.8,3.66592]
[1739957893695,0.7847,2728.3,2727.9,3.66582]
[1739957894300,0.7847,2728.3,2728.1,3.66552]
[1739957894694,0.005,2728.4,2727.9,0.8075]
[1739957894859,0.7847,2728.3,2728.1,3.66546]
[1739957895065,0.005,2728.4,2728.2,3.66542]
[1739957895279,0.005,2728.4,2728.3,3.66528]
[1739957897299,0.005,2728.4,2728.3,9.02528]
[1739957897603,0.005,2728.4,2728.3,9.84348]
[1739957898169,0.005,2728.4,2728.3,10.67406821]
[1739957899167,0.005,2728.4,2728.3,10.93906821]
[1739957899368,0.005,2728.4,2728.3,12.64041007]
[1739957901284,0.005,2728.4,2728.3,24.45041007]
[1739957901487,0.005,2728.4,2728.3,25.00041007]
[1739957903201,0.005,2728.4,2728.3,24.45041007]
[1739957905789,0.005,2728.4,2728.3,21.18541007]
[1739957907119,0.005,2728.4,2728.3,11.55721007]
[1739957907690,0.005,2728.4,2728.3,11.28515589]
[1739957907919,0.005,2728.4,2728.3,11.06668476]
[1739957908728,0.005,2728.4,2728.3,10.72662186]
[1739957909032,0.005,2728.4,2728.3,11.54182186]
[1739957911023,0.005,2728.4,2728.3,11.75973587]
[1739957911393,0.005,2728.4,2728.3,12.03109715]
[1739957912494,0.005,2728.4,2728.3,20.56973587]
[1739957912894,0.005,2728.4,2728.3,20.90895512]
[1739957915329,0.005,2728.4,2728.3,21.18025525]
[1739957920227,0.005,2728.4,2728.3,20.90895512]
[1739957920950,0.005,2728.4,2728.3,11.28375512]
[1739957922550,0.005,2728.4,2728.3,12.07865512]
[1739957923052,0.005,2728.4,2728.3,12.3505066]
[1739957926834,0.005,2728.4,2728.3,14.75943699]
[1739957927049,0.005,2728.4,2728.3,26.56943699]
[1739957931480,0.005,2728.4,2728.3,24.1605066]
[1739957933851,0.005,2728.4,2728.3,23.3656066]
[1739957935887,0.005,2728.4,2728.3,24.1623066]
[1739957936787,0.9369111,2729.5,2728.3,20.2503266]
[1739957936987,0.9369111,2729.5,2728.9,3.66448]
[1739957937205,0.9369111,2729.5,2729.3,3.66381]
[1739957938072,0.9369111,2729.5,2729.3,3.66384]
[1739957938274,0.1498111,2729.5,2729.4,3.6638]
[1739957939208,0.1498111,2729.5,2729.4,3.88237278]
[1739957939409,0.1498111,2729.5,2729.4,5.25340406]
[1739957940373,0.1498111,2729.5,2729.4,20.52646936]
[1739957940774,0.1498111,2729.5,2729.4,19.76346936]
[1739957941676,0.1498111,2729.5,2729.4,20.03547049]
[1739957942077,0.1498111,2729.5,2729.4,23.79417049]
[1739957950310,0.1498111,2729.5,2729.4,20.03547049]
[1739957950895,0.1498111,2729.5,2729.4,19.81689771]
[1739957951088,0.1498111,2729.5,2729.4,19.47683241]
[1739957951286,0.1498111,2729.5,2729.4,10.66683241]
[1739957952255,0.1498111,2729.5,2729.4,10.39483128]
[1739957952556,0.1498111,2729.5,2729.4,6.73103128]
[1739957952726,0.1498111,2729.5,2729.4,5.36]
[1739957952727,0.9559111,2729.5,2729.4,5.36]
[1739957953122,0.9559111,2729.5,2729.4,9.0238]
[1739957954124,0.1498111,2729.5,2729.4,9.0238]
[1739957954319,0.1498111,2729.5,2729.4,10.369423]
[1739957955320,0.9112111,2729.5,2729.4,9.0238]
[1739957956366,0.9112111,2729.5,2729.4,5.36]
[1739957956870,0.9112111,2729.5,2729.4,9.0238]
[1739957957024,0.1498111,2729.5,2729.4,9.0238]
[1739957960766,0.1498111,2729.5,2729.4,9.58036505]
[1739957960949,0.1498111,2729.5,2729.4,10.98646455]
[1739957963267,0.1498111,2729.5,2729.4,7.32266455]
[1739957963483,0.9457111,2729.5,2729.4,9.58036505]
[1739957964663,0.9457111,2729.5,2729.4,12.58036505]
[1739957965064,0.1498111,2729.5,2729.4,12.24151649]
[1739957965262,0.9566111,2729.5,2729.4,12.24151649]
[1739957965632,0.1498111,2729.5,2729.4,12.24151649]
[1739957965832,0.1498111,2729.5,2729.4,13.61434465]
[1739957968099,0.1498111,2729.5,2729.4,13.8862087]
[1739957968290,0.1498111,2729.5,2729.4,14.4443595]
[1739957972009,0.1498111,2729.5,2729.4,14.17249545]
[1739957975699,0.9771111,2729.5,2729.4,14.17249545]
[1739957977930,0.1498111,2729.5,2729.4,14.96749545]
[1739957979550,0.1498111,2729.5,2729.4,14.17249545]
[1739957979905,0.9748111,2729.5,2729.4,11.17249545]
[1739957980903,0.9748111,2729.5,2729.4,14.17249545]
[1739957981105,0.1498111,2729.5,2729.4,14.17249545]
[1739957982041,0.1498111,2729.5,2729.4,14.96459545]
[1739957982450,0.1498111,2729.5,2729.4,14.17249545]
[1739957987456,0.1498111,2729.5,2729.4,14.94119545]
[1739957988077,0.1498111,2729.5,2729.4,22.98249545]
[1739957988842,0.1498111,2729.5,2729.4,11.17249545]
[1739957989145,0.1498111,2729.5,2729.4,9.5819508]
[1739957989146,0.9078111,2729.5,2729.4,9.5819508]
[1739957989598,0.9078111,2729.5,2729.4,5.9181508]
[1739957990185,0.9078111,2729.5,2729.4,5.69982541]
[1739957991864,0.9078111,2729.5,2729.4,0.33982541]
[1739957992070,0.9078111,2729.5,2729.1,3.66419]
[1739957993196,1.36494321,2729.5,2729.1,3.66419]
[1739957993495,0.7779,2729.4,2728.8,3.66453]
[1739957993898,0.7779,2729.4,2728.6,5.36]
[1739957994066,0.7779,2729.4,2728.6,9.02486]
[1739957994266,0.7779,2729.4,2728.9,0.21860363]
[1739957994466,0.8329,2729.2,2728.9,0.21860363]
[1739957994967,0.8329,2729.2,2728.9,0.55880477]
[1739957996163,0.8329,2729.2,2728.9,0.34020114]
[1739957996563,3.66409,2729.2,2728.9,0.34020114]
[1739957996767,0.8123,2729.1,2728.5,0.55880477]
[1739957996975,0.8123,2729.0,2728.5,0.55880477]
[1739957997181,0.8123,2729.0,2728.5,4.22379477]
[1739957997514,0.8123,2729.0,2728.6,3.66487]
[1739957998384,0.8123,2729.0,2728.7,0.03664463]
[1739957998790,0.8123,2729.0,2728.6,3.6648]
[1739957998995,0.8123,2729.0,2728.7,1.268981]
[1739958000722,0.8123,2729.0,2728.7,4.933711]
[1739958000916,0.8123,2729.0,2728.8,3.66457]
[1739958001121,0.8123,2729.0,2728.9,3.66448]
[1739958001521,0.7912,2729.4,2728.8,3.66452]
[1739958001714,0.7912,2729.4,2728.7,8.598381]
[1739958001908,0.7912,2729.4,2728.8,4.6003681]
[1739958002515,0.7912,2729.4,2728.8,0.9357981]
[1739958002731,0.7912,2729.4,2728.5,5.36]
[1739958003025,0.8205,2729.1,2728.5,5.36]
[1739958003390,0.8205,2729.1,2728.5,9.02499]
[1739958003587,0.8205,2729.1,2728.5,5.36]
[1739958003815,0.7844,2729.1,2728.5,5.36]
[1739958004587,0.7844,2729.1,2728.4,3.66506]
[1739958004795,0.7844,2729.1,2728.4,1.66033759]
[1739958005024,0.7844,2729.1,2728.5,3.66499]
[1739958005825,0.7844,2729.1,2728.4,5.32546759]
[1739958006223,0.7931,2728.9,2728.4,1.66033759]
[1739958006396,0.7931,2728.9,2728.3,9.02521]
[1739958006736,0.7931,2728.9,2728.1,3.66549]
[1739958006737,0.8098,2728.6,2728.1,5.36]
[1739958007209,0.8098,2728.6,2727.9,3.66572]
[1739958007414,0.8098,2728.6,2727.9,5.758593]
[1739958007619,0.8098,2728.6,2728.0,3.66568]
[1739958007796,0.8098,2728.6,2728.1,3.66546]
[1739958008190,0.8098,2728.6,2728.2,3.66538]
[1739958008726,0.8098,2728.6,2728.0,3.66559]
[1739958009024,0.8098,2728.6,2728.0,4.85158572]
[1739958009211,3.665,2728.6,2727.8,9.76737421]
[1739958009417,0.7948,2728.5,2727.8,13.43325421]
[1739958009621,0.7948,2728.5,2727.8,9.76737421]
[1739958009828,0.7948,2728.5,2727.9,3.66575]
[1739958010326,0.7948,2728.5,2727.8,9.76743421]
[1739958010531,0.7948,2728.5,2727.9,3.6658]
[1739958010719,0.7948,2728.5,2727.9,3.66573]
[1739958011116,0.7948,2728.5,2727.9,5.70704546]
[1739958011321,0.7948,2728.5,2727.9,9.37278546]
[1739958011530,0.7948,2728.5,2727.9,5.70704546]
[1739958012209,0.7948,2728.5,2727.9,5.70703546]
[1739958012615,0.7948,2728.5,2728.0,3.66559]
[1739958012825,0.7948,2728.5,2728.1,3.66553]
[1739958013505,0.7948,2728.5,2728.0,3.66567]
[1739958015336,0.7948,2728.5,2728.1,3.66554]
[1739958016232,0.7948,2728.5,2727.9,5.70713546]
[1739958016440,0.7948,2728.5,2728.0,3.66565]
[1739958017356,0.7948,2728.5,2728.0,5.21307797]
[1739958017503,0.7948,2728.5,2728.0,1.54742797]
[1739958017703,0.7948,2728.5,2728.1,3.66554]
[1739958017958,0.7948,2728.5,2727.8,9.76744421]
[1739958019147,0.7948,2728.5,2727.8,6.10149421]
[1739958019354,0.7948,2728.5,2727.9,3.6658]
[1739958019634,0.7948,2728.5,2727.8,10.32011346]
[1739958020664,0.7948,2728.5,2727.9,3.66576]
[1739958020841,0.7948,2728.5,2727.8,5.36]
[1739958021051,0.7948,2728.5,2727.8,9.02587]
[1739958021355,0.7948,2728.5,2727.8,12.69174]
[1739958021561,0.7705,2728.2,2727.5,3.66629]
[1739958021706,0.7705,2728.2,2727.4,10.11669]
[1739958022028,0.7705,2728.2,2727.6,3.66615]
[1739958022326,0.7705,2728.2,2727.6,7.33227]
[1739958022657,0.7705,2728.2,2727.5,1.30000416]
[1739958022824,0.7705,2728.2,2727.7,3.66599]
[1739958023477,0.7705,2728.2,2727.7,3.66607]
[1739958023668,0.7705,2728.2,2727.8,3.66582]
[1739958024247,0.7705,2728.2,2727.7,3.66607]
[1739958024864,0.7705,2728.2,2727.6,0.77502042]
[1739958025872,0.7705,2728.2,2727.7,0.21835811]
[1739958026268,0.7705,2728.2,2727.7,0.5585804]
[1739958028665,0.7705,2728.2,2727.7,0.21835811]
[1739958030274,0.7705,2728.2,2727.7,4.22479458]
[1739958030474,0.7705,2728.2,2727.8,0.4999815]
[1739958031075,0.7705,2728.2,2727.8,0.71833961]
[1739958031848,0.7705,2728.2,2727.9,0.34038647]
[1739958032277,0.7705,2728.2,2727.9,0.55874458]
[1739958032975,0.7705,2728.2,2727.9,0.21835811]
[1739958033556,0.7705,2728.2,2727.7,0.55874458]
[1739958033967,3.66583,2727.9,2727.7,0.55874458]
[1739958034282,0.8126,2727.8,2727.0,0.782]
[1739958034672,0.8126,2727.8,2727.2,0.73196535]
[1739958035342,0.8126,2727.8,2727.3,0.34102813]
[1739958036846,0.8126,2727.8,2727.4,0.34102813]
[1739958037050,6.1802,2728.1,2727.5,0.40076381]
[1739958037482,4.48965,2728.0,2727.4,0.34102813]
[1739958037657,0.8239,2728.0,2727.4,0.34102813]
[1739958038204,0.8239,2728.0,2727.5,0.34102813]
[1739958038406,3.66576,2728.0,2727.5,0.34102813]
[1739958038555,0.8239,2727.9,2727.5,0.34102813]
[1739958038947,1.272866,2727.9,2727.5,0.34102813]
[1739958039450,0.8239,2727.9,2727.5,0.34102813]
[1739958040072,0.8239,2727.9,2727.2,0.7945]
[1739958040474,0.8239,2727.9,2727.2,4.46125]
[1739958041092,0.8239,2727.9,2727.2,0.7945]
[1739958041262,0.8239,2727.9,2727.3,0.34087018]
[1739958041565,0.8239,2727.9,2727.3,0.89584326]
[1739958042361,0.8239,2727.9,2727.4,0.34087018]
[1739958043548,0.8239,2727.9,2727.5,0.34087018]
[1739958044986,0.8239,2727.9,2727.3,0.55497308]
[1739958046076,0.8239,2727.9,2727.2,4.46122]
[1739958046288,0.8239,2727.9,2727.4,0.34093695]
[1739958047875,0.8239,2727.9,2727.5,0.34093695]
[1739958050005,0.8239,2727.9,2727.2,0.7945]
[1739958050205,4.48982,2727.9,2727.2,0.7945]
[1739958050392,0.8239,2727.9,2727.2,0.7945]
[1739958050586,0.8239,2727.9,2727.2,1.31540506]
[1739958050907,0.8239,2727.9,2727.3,0.34108247]
[1739958052097,0.8239,2727.9,2727.4,0.34108247]
[1739958053071,0.7867,2728.1,2727.5,1.96861332]
[1739958053266,0.7867,2728.1,2727.5,2.1995829]
[1739958053593,0.7867,2728.4,2727.8,0.7652]
[1739958053787,0.7867,2728.4,2727.9,0.03665447]
[1739958053994,0.7867,2728.4,2727.8,0.7652]
[1739958055372,4.45188,2728.4,2727.8,0.7652]
[1739958055573,4.648558,2728.3,2727.8,0.7652]
[1739958055999,0.983188,2728.3,2727.8,0.7652]
[1739958056198,4.45186,2728.4,2727.8,0.7652]
[1739958058603,3.66535,2728.3,2727.8,0.7652]
[1739958059010,0.7867,2728.4,2727.8,0.7652]
[1739958059210,0.8088,2728.6,2727.9,0.03665514]
[1739958059415,0.8088,2728.6,2728.0,0.8209]
[1739958059596,0.8088,2728.6,2728.0,1.636153]
[1739958059797,0.7596,2728.8,2728.0,1.636153]
[1739958060197,9.84908,2729.1,2728.3,0.7599]
[1739958060388,3.66436,2729.0,2728.3,0.7599]
[1739958061216,3.66454,2728.9,2728.3,0.7599]
[1739958061416,0.8188,2728.7,2728.0,0.8278]
[1739958061789,4.4836,2728.7,2728.0,0.8278]
[1739958061991,3.66489,2728.6,2728.0,0.8278]
[1739958062317,0.8188,2728.4,2727.8,0.8278]
[1739958064420,0.5284,2728.4,2727.8,0.8278]
[1739958066593,4.19358,2728.4,2727.8,0.8278]
[1739958066793,0.5284,2728.4,2727.8,0.8278]
[1739958067818,0.816,2728.6,2727.8,4.49364]
[1739958067992,0.816,2728.6,2727.9,4.935904]
[1739958068399,0.816,2728.6,2727.9,1.270164]
[1739958068798,5.38,2728.7,2727.9,0.449364]
[1739958069003,5.38,2728.7,2728.0,4.4861]
[1739958070327,3.66511,2728.5,2728.0,0.8205]
[1739958070529,9.04486,2728.7,2728.0,0.8205]
[1739958070688,1.353187,2728.6,2728.0,0.8205]
[1739958071094,3.66504,2728.5,2728.0,0.8205]
[1739958071724,1.353187,2728.6,2728.0,0.8205]
[1739958071915,9.04483,2728.7,2728.0,0.8205]
[1739958073126,5.38,2728.7,2728.0,0.8205]
[1739958073305,5.38,2728.7,2728.2,0.7722]
[1739958074934,5.38,2728.7,2728.4,0.7722]
[1739958075234,5.38,2729.1,2728.4,0.7722]
[1739958075528,5.38,2729.1,2728.5,0.7722]
[1739958076243,3.66409,2729.2,2728.7,0.7835]
[1739958077450,3.66409,2729.2,2728.3,4.39584685]
[1739958077745,3.66409,2729.2,2728.5,0.7813]
[1739958078615,3.66408,2729.2,2728.5,0.7813]
[1739958079239,2.40615147,2728.9,2727.9,1.0301]
[1739958079426,2.40615147,2728.9,2728.0,0.7671]
[1739958079990,3.66474,2728.7,2728.0,0.7671]
[1739958080258,3.66474,2728.7,2728.0,1.81818113]
[1739958080428,3.66474,2728.7,2728.0,0.7671]
[1739958081853,3.66474,2728.7,2728.1,0.0366525]
[1739958082350,5.38,2728.8,2728.2,0.823]
[1739958082546,9.04464,2728.8,2728.3,0.096]
[1739958082748,5.38,2728.8,2728.3,0.096]
[1739958082950,5.38,2728.8,2728.4,0.8173]
[1739958083119,5.38,2728.8,2728.6,0.8173]
[1739958084854,3.66409,2729.2,2728.6,0.8173]
[1739958086655,6.06999147,2729.4,2728.6,0.8173]
[1739958086856,3.66416,2729.2,2728.6,0.8173]
[1739958087449,3.66426,2729.1,2728.6,0.8173]
[1739958087628,4.397262,2729.0,2728.6,0.8173]
[1739958087829,3.66458,2728.9,2728.4,0.7602]
[1739958088362,6.83797147,2729.1,2728.4,0.7602]
[1739958088558,3.66472,2728.8,2728.4,0.7602]
[1739958089249,7.32945,2728.8,2728.4,0.7602]
[1739958089450,8.062395,2728.8,2728.4,0.7602]
[1739958089658,3.66477,2728.7,2728.3,0.096]
[1739958089864,0.732945,2728.8,2728.3,0.096]
[1739958090229,3.66492,2728.6,2728.3,0.096]
[1739958090760,3.66505,2728.5,2728.3,0.096]
[1739958091167,3.66492,2728.6,2728.3,0.096]
[1739958092231,3.66509,2728.5,2728.3,0.096]
[1739958092968,3.66492,2728.6,2728.3,0.096]
[1739958093644,5.38,2729.0,2728.3,0.096]
[1739958093846,3.66455,2728.9,2728.4,0.8233]
[1739958094760,7.32911,2728.9,2728.4,0.8233]
[1739958095272,3.66472,2728.8,2728.4,0.8233]
[1739958095754,3.66455,2728.9,2728.4,0.8233]
[1739958095959,3.66482,2728.7,2728.3,0.096]
[1739958096835,3.66488,2728.6,2728.3,0.096]
[1739958097033,0.7608,2728.8,2728.3,0.096]
[1739958097267,3.66508,2728.5,2728.3,0.096]
[1739958097979,3.66491,2728.6,2728.3,0.096]
[1739958098277,3.66502,2728.5,2728.3,0.096]
[1739958098768,3.66489,2728.6,2728.3,0.096]
[1739958100574,4.42542,2728.8,2728.3,0.096]
[1739958100784,3.66476,2728.7,2728.3,0.096]
[1739958101890,5.74527565,2728.8,2728.3,0.096]
[1739958102277,9.40996565,2728.8,2728.3,0.096]
[1739958102522,3.66482,2728.7,2728.3,0.096]
[1739958102681,3.66501,2728.6,2728.3,0.096]
[1739958103171,3.66474,2728.7,2728.3,0.096]
[1739958103373,4.57859321,2728.7,2728.3,0.096]
[1739958103559,3.66495,2728.6,2728.3,0.096]
[1739958103761,8.51420665,2728.7,2728.3,0.096]
[1739958104256,3.66489,2728.6,2728.3,0.096]
[1739958108692,4.84934665,2728.7,2728.3,0.096]
[1739958108976,3.66515,2728.4,2728.3,0.096]